[Event "*** Titled Tuesday 3|2 Blitz"]
[Site "Chess.com"]
[Date "2016.01.05"]
[Round "4"]
[White "stefanodinn"]
[Black "BIG_Pirate"]
[Result "1-0"]
[WhiteElo "2155"]
[BlackElo "2195"]
[TimeControl "180+2"]
[EndTime "11:48:19 PST"]
[Termination "stefanodinn won on time"]

1. e4 {[%clk 0:03:01.9]} 1... d5 {[%clk 0:03:00.9]} 2. exd5 {[%clk 0:03:02]}
2... Qxd5 {[%clk 0:03:02.8]} 3. Nc3 {[%clk 0:03:00.3]} 3... Qa5 {[%clk
0:03:03.7]} 4. d4 {[%clk 0:02:59.8]} 4... Nf6 {[%clk 0:03:04.6]} 5. Nf3 {[%clk
0:03:00]} 5... Bg4 {[%clk 0:03:05.5]} 6. h3 {[%clk 0:03:00.4]} 6... Bh5 {[%clk
0:03:06.7]} 7. g4 {[%clk 0:03:01.3]} 7... Bg6 {[%clk 0:03:07.8]} 8. Ne5 {[%clk
0:03:02.1]} 8... e6 {[%clk 0:03:09.1]} 9. Nc4 {[%clk 0:02:51.9]} 9... Qa6 {[%clk
0:03:09.5]} 10. Bf4 {[%clk 0:02:36]} 10... Qc6 {[%clk 0:03:09.8]} 11. Rg1 {[%clk
0:02:35.2]} 11... Bb4 {[%clk 0:03:03.9]} 12. a3 {[%clk 0:01:55.5]} 12... Bxc3+
{[%clk 0:03:03.4]} 13. bxc3 {[%clk 0:01:55.8]} 13... Nbd7 {[%clk 0:03:02.3]} 14.
Bd3 {[%clk 0:01:46.6]} 14... Nd5 {[%clk 0:02:58.6]} 15. Bd2 {[%clk 0:01:41.8]}
15... O-O-O {[%clk 0:02:51.3]} 16. Qf3 {[%clk 0:01:38.7]} 16... f6 {[%clk
0:02:35.3]} 17. Kf1 {[%clk 0:01:17.9]} 17... N7b6 {[%clk 0:02:28.1]} 18. Na5
{[%clk 0:01:11.7]} 18... Qa4 {[%clk 0:02:21.8]} 19. c4 {[%clk 0:01:08.2]} 19...
Bxd3+ {[%clk 0:02:15.7]} 20. cxd3 {[%clk 0:01:03.8]} 20... Qc2 {[%clk
0:01:00.6]} 21. Be1 {[%clk 0:00:46.4]} 21... Qb2 {[%clk 0:00:43.2]} 22. Rd1
{[%clk 0:00:38.2]} 22... Nc3 {[%clk 0:00:36.1]} 23. Qxb7+ {[%clk 0:00:37.5]}
23... Kd7 {[%clk 0:00:37.4]} 24. Qc6+ {[%clk 0:00:36.6]} 24... Ke7 {[%clk
0:00:38.5]} 25. Bxc3 {[%clk 0:00:15.6]} 25... Qxc3 {[%clk 0:00:39]} 26. Qxc7+
{[%clk 0:00:14.6]} 26... Rd7 {[%clk 0:00:40.4]} 27. Nc6+ {[%clk 0:00:13.4]}
27... Kf7 {[%clk 0:00:41.6]} 28. Qf4 {[%clk 0:00:11.2]} 28... g5 {[%clk
0:00:24.3]} 29. Qf3 {[%clk 0:00:12.1]} 29... Kg7 {[%clk 0:00:24.8]} 30. Kg2
{[%clk 0:00:12.2]} 30... Rc8 {[%clk 0:00:12.7]} 31. Rge1 {[%clk 0:00:13.1]}
31... Rd6 {[%clk 0:00:11.8]} 32. d5 {[%clk 0:00:10.6]} 32... exd5 {[%clk
0:00:08]} 33. Ne7 {[%clk 0:00:11.5]} 33... Rcd8 {[%clk 0:00:02.3]} 34. Nf5+
{[%clk 0:00:11.2]} 34... Kg6 {[%clk 0:00:04.2]} 35. Nxd6 {[%clk 0:00:12.1]}
35... Rxd6 {[%clk 0:00:06.1]} 36. Re7 {[%clk 0:00:09.8]} 1-0

[Event "*** Titled Tuesday 3|2 Blitz"]
[Site "Chess.com"]
[Date "2016.01.05"]
[Round "4"]
[White "Frolyanov_D"]
[Black "Danirod"]
[Result "1-0"]
[WhiteElo "2487"]
[BlackElo "2384"]
[TimeControl "180+2"]
[EndTime "11:49:06 PST"]
[Termination "Frolyanov_D won by resignation"]

1. e4 {[%clk 0:03:01.9]} 1... c5 {[%clk 0:03:00.9]} 2. Nf3 {[%clk 0:03:02.5]}
2... g6 {[%clk 0:03:02.2]} 3. d4 {[%clk 0:03:01.2]} 3... cxd4 {[%clk 0:03:03.5]}
4. Nxd4 {[%clk 0:03:02.8]} 4... Bg7 {[%clk 0:03:04.9]} 5. Be2 {[%clk 0:03:03]}
5... Nc6 {[%clk 0:03:05.5]} 6. Nb3 {[%clk 0:03:03.7]} 6... Nf6 {[%clk 0:03:06]}
7. Nc3 {[%clk 0:03:04.8]} 7... d6 {[%clk 0:03:07.5]} 8. O-O {[%clk 0:03:05.9]}
8... O-O {[%clk 0:03:08.5]} 9. Re1 {[%clk 0:03:07.4]} 9... Be6 {[%clk
0:03:06.5]} 10. Bf1 {[%clk 0:03:08.9]} 10... Rc8 {[%clk 0:03:06.6]} 11. Nd5
{[%clk 0:03:07.3]} 11... Bxd5 {[%clk 0:02:48]} 12. exd5 {[%clk 0:03:09.2]} 12...
Nb4 {[%clk 0:02:49.4]} 13. c4 {[%clk 0:03:06.6]} 13... b5 {[%clk 0:02:50.5]} 14.
a3 {[%clk 0:02:56.5]} 14... bxc4 {[%clk 0:02:51.4]} 15. axb4 {[%clk 0:02:55.1]}
15... cxb3 {[%clk 0:02:52.7]} 16. Qxb3 {[%clk 0:02:55.6]} 16... Rc7 {[%clk
0:02:42.3]} 17. Be3 {[%clk 0:02:55.4]} 17... Qb8 {[%clk 0:02:43]} 18. Ra5 {[%clk
0:02:44.8]} 18... Ng4 {[%clk 0:02:31.7]} 19. Bg5 {[%clk 0:02:17.7]} 19... Rb7
{[%clk 0:02:01.5]} 20. b5 {[%clk 0:02:00.9]} 20... Nf6 {[%clk 0:01:53.7]} 21. h3
{[%clk 0:01:58.2]} 21... Rc8 {[%clk 0:01:50.5]} 22. Be3 {[%clk 0:01:57.6]} 22...
Ne4 {[%clk 0:01:42.4]} 23. Rea1 {[%clk 0:01:52.7]} 23... Nc5 {[%clk 0:01:43.3]}
24. Qa3 {[%clk 0:01:46.4]} 24... Be5 {[%clk 0:01:32.1]} 25. Ra2 {[%clk 0:01:46]}
25... h5 {[%clk 0:01:22.6]} 26. b4 {[%clk 0:01:45.2]} 26... Ne4 {[%clk
0:01:11.1]} 27. Rxa7 {[%clk 0:01:45.4]} 27... Nc3 {[%clk 0:00:58.4]} 28. Rxb7
{[%clk 0:01:43.3]} 28... Qxb7 {[%clk 0:00:59.7]} 29. Qa6 {[%clk 0:01:43]} 29...
Rb8 {[%clk 0:00:55.4]} 30. Qxb7 {[%clk 0:01:43.4]} 30... Rxb7 {[%clk 0:00:57.1]}
31. Ra8+ {[%clk 0:01:34.3]} 31... Kg7 {[%clk 0:00:58.1]} 32. b6 {[%clk
0:01:26.9]} 32... Nxd5 {[%clk 0:00:58.6]} 33. Ba6 {[%clk 0:01:25.5]} 33... Rxb6
{[%clk 0:00:46.5]} 34. Bxb6 {[%clk 0:01:25.4]} 34... Nxb6 {[%clk 0:00:48]} 35.
Rb8 {[%clk 0:01:25.6]} 35... Bd4 {[%clk 0:00:49.4]} 36. Kf1 {[%clk 0:01:20.7]}
36... Kf6 {[%clk 0:00:50.8]} 37. Rb7 {[%clk 0:01:20.5]} 37... e5 {[%clk
0:00:51]} 38. f3 {[%clk 0:01:19.9]} 38... Ke6 {[%clk 0:00:51.4]} 39. Ke2 {[%clk
0:01:18.6]} 39... f5 {[%clk 0:00:52]} 40. Bd3 {[%clk 0:01:19.1]} 40... d5 {[%clk
0:00:47.1]} 41. Bb1 {[%clk 0:01:18.7]} 41... e4 {[%clk 0:00:45.4]} 42. Ba2
{[%clk 0:01:19.1]} 42... Ke5 {[%clk 0:00:35.4]} 43. g4 {[%clk 0:01:15.4]} 43...
hxg4 {[%clk 0:00:24]} 44. hxg4 {[%clk 0:01:15.7]} 44... fxg4 {[%clk 0:00:24]}
45. fxg4 {[%clk 0:01:15.9]} 45... Kf4 {[%clk 0:00:21.4]} 46. Rb8 {[%clk
0:01:06.9]} 46... g5 {[%clk 0:00:20.2]} 47. Rd8 {[%clk 0:01:06.9]} 47... Ke5
{[%clk 0:00:21]} 48. b5 {[%clk 0:01:06.8]} 48... Bc5 {[%clk 0:00:21.3]} 49. Re8+
{[%clk 0:01:04.5]} 49... Kd4 {[%clk 0:00:22.2]} 50. Re6 {[%clk 0:01:02.1]} 50...
Kc3 {[%clk 0:00:21.6]} 51. Re5 {[%clk 0:00:59.2]} 51... Kd4 {[%clk 0:00:22.9]}
52. Rxg5 {[%clk 0:00:59.7]} 52... Bb4 {[%clk 0:00:22.3]} 53. Rf5 {[%clk
0:00:57.3]} 53... Nc4 {[%clk 0:00:21.7]} 54. Bxc4 {[%clk 0:00:56.7]} 54... dxc4
{[%clk 0:00:23]} 55. b6 {[%clk 0:00:57.2]} 55... c3 {[%clk 0:00:23.7]} 56. b7
{[%clk 0:00:56.7]} 56... Bd6 {[%clk 0:00:21.7]} 57. Rf6 {[%clk 0:00:52.2]} 57...
Be5 {[%clk 0:00:22]} 58. Rc6 {[%clk 0:00:51.8]} 58... e3 {[%clk 0:00:20.6]} 59.
g5 {[%clk 0:00:51.9]} 59... Ke4 {[%clk 0:00:21.3]} 60. g6 {[%clk 0:00:51.8]}
60... c2 {[%clk 0:00:21.1]} 61. Rxc2 {[%clk 0:00:51.2]} 61... Kf5 {[%clk
0:00:22.6]} 62. Rc5 {[%clk 0:00:51]} 1-0

[Event "*** Titled Tuesday 3|2 Blitz"]
[Site "Chess.com"]
[Date "2016.01.05"]
[Round "4"]
[White "volodja49"]
[Black "Cats4Sale"]
[Result "1-0"]
[WhiteElo "2294"]
[BlackElo "2198"]
[TimeControl "180+2"]
[EndTime "11:49:19 PST"]
[Termination "volodja49 won by resignation"]

1. d4 {[%clk 0:03:01.9]} 1... Nf6 {[%clk 0:02:58.3]} 2. c4 {[%clk 0:03:01.9]}
2... e6 {[%clk 0:02:59.4]} 3. Nc3 {[%clk 0:02:52.2]} 3... Bb4 {[%clk 0:03:00.3]}
4. f3 {[%clk 0:02:51.7]} 4... Bxc3+ {[%clk 0:02:48.9]} 5. bxc3 {[%clk
0:02:52.2]} 5... d6 {[%clk 0:02:50.3]} 6. e4 {[%clk 0:02:52.6]} 6... e5 {[%clk
0:02:51.5]} 7. Be3 {[%clk 0:02:53.3]} 7... Nc6 {[%clk 0:02:50.1]} 8. d5 {[%clk
0:02:42.9]} 8... Ne7 {[%clk 0:02:46]} 9. c5 {[%clk 0:02:43.9]} 9... O-O {[%clk
0:02:32.5]} 10. c4 {[%clk 0:02:43.9]} 10... b6 {[%clk 0:02:21.9]} 11. c6 {[%clk
0:02:38.2]} 11... Ng6 {[%clk 0:02:19.1]} 12. Ne2 {[%clk 0:02:36.3]} 12... Nh5
{[%clk 0:02:18.7]} 13. g3 {[%clk 0:02:32.2]} 13... f5 {[%clk 0:02:03]} 14. exf5
{[%clk 0:02:27.4]} 14... Bxf5 {[%clk 0:02:03.7]} 15. Bg2 {[%clk 0:02:17.1]}
15... e4 {[%clk 0:01:18.2]} 16. f4 {[%clk 0:02:12.2]} 16... Bg4 {[%clk
0:01:11.8]} 17. O-O {[%clk 0:02:12.8]} 17... Qc8 {[%clk 0:00:55.8]} 18. Qd2
{[%clk 0:02:11.8]} 18... Bf3 {[%clk 0:00:46.5]} 19. Nd4 {[%clk 0:01:58.5]} 19...
Bxg2 {[%clk 0:00:40]} 20. Qxg2 {[%clk 0:01:50.8]} 20... Qg4 {[%clk 0:00:30.2]}
21. Ne6 {[%clk 0:01:43.7]} 21... Rf7 {[%clk 0:00:22.3]} 22. Rae1 {[%clk
0:01:32.5]} 22... Re8 {[%clk 0:00:20.5]} 23. Bd4 {[%clk 0:01:33.3]} 23... Rxe6
{[%clk 0:00:12.7]} 24. dxe6 {[%clk 0:01:33.7]} 24... Qxe6 {[%clk 0:00:13.9]} 25.
Qxe4 {[%clk 0:01:30.8]} 25... Qxc4 {[%clk 0:00:13.8]} 26. f5 {[%clk 0:01:00.4]}
26... Ne7 {[%clk 0:00:06.7]} 27. g4 {[%clk 0:00:58.1]} 27... Nxc6 {[%clk
0:00:03]} 28. Ba1 {[%clk 0:00:17.6]} 28... Qxe4 {[%clk 0:00:03.7]} 29. Rxe4
{[%clk 0:00:19.4]} 29... Nf6 {[%clk 0:00:05.3]} 30. Rc4 {[%clk 0:00:18.2]} 30...
Ne5 {[%clk 0:00:04.3]} 31. Bxe5 {[%clk 0:00:17.7]} 31... dxe5 {[%clk 0:00:05.7]}
32. h3 {[%clk 0:00:15.8]} 32... c5 {[%clk 0:00:05.5]} 33. Rd1 {[%clk 0:00:16.6]}
33... h6 {[%clk 0:00:03.4]} 34. Rc2 {[%clk 0:00:13.3]} 34... e4 {[%clk
0:00:03.4]} 35. Kf2 {[%clk 0:00:14]} 35... Re7 {[%clk 0:00:03.5]} 36. Ke3 {[%clk
0:00:15.1]} 36... Re5 {[%clk 0:00:03.5]} 37. Rcd2 {[%clk 0:00:15.5]} 37... h5
{[%clk 0:00:03.3]} 38. Kf4 {[%clk 0:00:13.9]} 38... Re7 {[%clk 0:00:02.9]} 39.
g5 {[%clk 0:00:14.3]} 39... Ne8 {[%clk 0:00:02.7]} 40. Re2 {[%clk 0:00:13]}
40... Nc7 {[%clk 0:00:03.1]} 41. Rxe4 {[%clk 0:00:13.6]} 41... Kf7 {[%clk
0:00:02.8]} 42. g6+ {[%clk 0:00:14]} 42... Ke8 {[%clk 0:00:03.4]} 43. Rd6 {[%clk
0:00:12.4]} 43... Nb5 {[%clk 0:00:03]} 44. Rde6 {[%clk 0:00:11.2]} 44... Rxe6
{[%clk 0:00:04.4]} 45. Rxe6+ {[%clk 0:00:13.1]} 45... Kf8 {[%clk 0:00:03.6]} 46.
Rc6 {[%clk 0:00:13.1]} 46... Ke7 {[%clk 0:00:03.2]} 47. Rc8 {[%clk 0:00:13.5]}
47... Nd4 {[%clk 0:00:02.7]} 48. Rg8 {[%clk 0:00:14]} 48... Kd6 {[%clk
0:00:02.9]} 49. Rxg7 {[%clk 0:00:14.6]} 49... c4 {[%clk 0:00:04.4]} 50. Rg8
{[%clk 0:00:15.8]} 50... c3 {[%clk 0:00:05.8]} 51. Rc8 {[%clk 0:00:16.6]} 51...
Nc6 {[%clk 0:00:07.3]} 52. Ke3 {[%clk 0:00:17]} 52... Kd7 {[%clk 0:00:08.1]} 53.
Rxc6 {[%clk 0:00:17.4]} 1-0

[Event "*** Titled Tuesday 3|2 Blitz"]
[Site "Chess.com"]
[Date "2016.01.05"]
[Round "4"]
[White "gumersindo"]
[Black "Haridaskesavan"]
[Result "1-0"]
[WhiteElo "2288"]
[BlackElo "2106"]
[TimeControl "180+2"]
[EndTime "11:49:25 PST"]
[Termination "gumersindo won by resignation"]

1. d4 {[%clk 0:03:01.9]} 1... Nf6 {[%clk 0:02:58.5]} 2. c4 {[%clk 0:03:02.7]}
2... d6 {[%clk 0:02:59.6]} 3. Nc3 {[%clk 0:03:03.3]} 3... Nbd7 {[%clk
0:03:00.6]} 4. e4 {[%clk 0:03:02.9]} 4... e5 {[%clk 0:03:01.7]} 5. Nf3 {[%clk
0:03:04.2]} 5... Be7 {[%clk 0:03:02.3]} 6. Be2 {[%clk 0:03:04.8]} 6... O-O
{[%clk 0:03:03.2]} 7. O-O {[%clk 0:03:05.9]} 7... Re8 {[%clk 0:03:04.5]} 8. Re1
{[%clk 0:03:03]} 8... c6 {[%clk 0:03:05.5]} 9. Qc2 {[%clk 0:02:59.4]} 9... Qc7
{[%clk 0:03:06.4]} 10. b3 {[%clk 0:02:58.6]} 10... Bf8 {[%clk 0:03:07]} 11. Bb2
{[%clk 0:02:58.9]} 11... a6 {[%clk 0:03:08.2]} 12. Rad1 {[%clk 0:02:59.3]} 12...
c5 {[%clk 0:03:05.4]} 13. dxe5 {[%clk 0:02:58.8]} 13... Nxe5 {[%clk 0:03:04.2]}
14. Nd5 {[%clk 0:02:53.1]} 14... Nxd5 {[%clk 0:03:04.3]} 15. Rxd5 {[%clk
0:02:51.4]} 15... Be6 {[%clk 0:03:03.4]} 16. Rd2 {[%clk 0:02:50.8]} 16... Nxf3+
{[%clk 0:02:53.4]} 17. Bxf3 {[%clk 0:02:50.5]} 17... Rad8 {[%clk 0:02:52.8]} 18.
Red1 {[%clk 0:02:49.8]} 18... b5 {[%clk 0:02:49.5]} 19. Be2 {[%clk 0:02:41.7]}
19... b4 {[%clk 0:02:46.4]} 20. Bf3 {[%clk 0:02:30.1]} 20... a5 {[%clk
0:02:46.6]} 21. Qd3 {[%clk 0:02:25.3]} 21... Bd7 {[%clk 0:02:27.9]} 22. Qe3
{[%clk 0:02:10.1]} 22... Bc6 {[%clk 0:02:21.4]} 23. Qf4 {[%clk 0:02:10.7]} 23...
f6 {[%clk 0:02:13.9]} 24. h4 {[%clk 0:02:09.4]} 24... a4 {[%clk 0:02:03.6]} 25.
h5 {[%clk 0:02:07.5]} 25... axb3 {[%clk 0:01:56.6]} 26. axb3 {[%clk 0:02:08.2]}
26... Qb7 {[%clk 0:01:53.1]} 27. Re2 {[%clk 0:02:02]} 27... h6 {[%clk
0:01:45.7]} 28. Rde1 {[%clk 0:01:57.5]} 28... Qa6 {[%clk 0:01:05.8]} 29. Bg4
{[%clk 0:01:55.3]} 29... Bd7 {[%clk 0:01:00.7]} 30. Bxd7 {[%clk 0:01:50.3]}
30... Rxd7 {[%clk 0:01:01.4]} 31. Qg4 {[%clk 0:01:51.7]} 31... Rf7 {[%clk
0:00:57]} 32. Re3 {[%clk 0:01:47.8]} 32... Qc8 {[%clk 0:00:50.1]} 33. Qf4 {[%clk
0:01:37]} 33... Qe6 {[%clk 0:00:45.4]} 34. g4 {[%clk 0:01:34.4]} 34... Ra7
{[%clk 0:00:35]} 35. R1e2 {[%clk 0:01:30.3]} 35... Rae7 {[%clk 0:00:26.1]} 36.
Kg2 {[%clk 0:01:27.1]} 36... Qf7 {[%clk 0:00:26.7]} 37. Qf5 {[%clk 0:01:23.7]}
37... Re6 {[%clk 0:00:26.2]} 38. Rd2 {[%clk 0:01:16.5]} 38... Qb7 {[%clk
0:00:26.2]} 39. Rd5 {[%clk 0:01:14.8]} 39... Qa6 {[%clk 0:00:24]} 40. Rd2 {[%clk
0:00:45.2]} 40... Qb7 {[%clk 0:00:22]} 41. f3 {[%clk 0:00:45.7]} 41... Qa6
{[%clk 0:00:20]} 42. Qd5 {[%clk 0:00:42]} 42... Qa8 {[%clk 0:00:19.3]} 43. Re1
{[%clk 0:00:37.3]} 43... Qxd5 {[%clk 0:00:19.6]} 44. Rxd5 {[%clk 0:00:37.7]}
44... Kf7 {[%clk 0:00:20.1]} 45. Ra1 {[%clk 0:00:37.7]} 45... R6e7 {[%clk
0:00:20]} 46. Ra6 {[%clk 0:00:31.9]} 46... Rd7 {[%clk 0:00:20.6]} 47. Bc1 {[%clk
0:00:31.2]} 47... Rc8 {[%clk 0:00:21.1]} 48. Bf4 {[%clk 0:00:32.1]} 48... Ke6
{[%clk 0:00:21.1]} 49. Be3 {[%clk 0:00:31.5]} 49... Rcc7 {[%clk 0:00:21.8]} 50.
Bxc5 {[%clk 0:00:32.2]} 50... Rc8 {[%clk 0:00:15.9]} 51. Bxb4 {[%clk 0:00:29.1]}
51... Rb8 {[%clk 0:00:16.1]} 52. Rb5 {[%clk 0:00:29]} 52... Rxb5 {[%clk
0:00:16.6]} 53. cxb5 {[%clk 0:00:30]} 53... Rb7 {[%clk 0:00:17.8]} 54. b6 {[%clk
0:00:29.1]} 54... Kd7 {[%clk 0:00:18.8]} 55. Ra7 {[%clk 0:00:29.7]} 55... Kc6
{[%clk 0:00:19.1]} 56. Rxb7 {[%clk 0:00:29.1]} 56... Kxb7 {[%clk 0:00:19.9]} 57.
f4 {[%clk 0:00:30.7]} 57... Kxb6 {[%clk 0:00:20.6]} 58. e5 {[%clk 0:00:32.1]}
58... fxe5 {[%clk 0:00:21.6]} 59. fxe5 {[%clk 0:00:33.1]} 59... Kb5 {[%clk
0:00:22.1]} 60. Bxd6 {[%clk 0:00:33.7]} 60... Bxd6 {[%clk 0:00:22.2]} 61. exd6
{[%clk 0:00:35.1]} 61... Kc6 {[%clk 0:00:21.7]} 62. Kf3 {[%clk 0:00:36.5]} 62...
Kxd6 {[%clk 0:00:23.1]} 63. Kf4 {[%clk 0:00:38]} 63... Kc5 {[%clk 0:00:24.4]}
64. Kf5 {[%clk 0:00:39.2]} 1-0

[Event "*** Titled Tuesday 3|2 Blitz"]
[Site "Chess.com"]
[Date "2016.01.05"]
[Round "4"]
[White "Cecile_Haussernot"]
[Black "jk13"]
[Result "1-0"]
[WhiteElo "2212"]
[BlackElo "2204"]
[TimeControl "180+2"]
[EndTime "11:49:31 PST"]
[Termination "Cecile_Haussernot won by resignation"]

1. e4 {[%clk 0:03:01.9]} 1... e6 {[%clk 0:03:01.9]} 2. d4 {[%clk 0:03:02.5]}
2... d5 {[%clk 0:03:03.5]} 3. Nc3 {[%clk 0:03:03]} 3... Bb4 {[%clk 0:03:04]} 4.
Ne2 {[%clk 0:03:02.1]} 4... Nc6 {[%clk 0:03:04.6]} 5. a3 {[%clk 0:02:56.9]} 5...
Ba5 {[%clk 0:03:05.5]} 6. Be3 {[%clk 0:02:42.4]} 6... Nge7 {[%clk 0:03:05.8]} 7.
Qd3 {[%clk 0:02:39.8]} 7... O-O {[%clk 0:03:06.2]} 8. g3 {[%clk 0:02:36.2]} 8...
e5 {[%clk 0:02:55.8]} 9. O-O-O {[%clk 0:02:06.7]} 9... dxe4 {[%clk 0:02:41]} 10.
Nxe4 {[%clk 0:01:45.8]} 10... exd4 {[%clk 0:02:41.7]} 11. Nxd4 {[%clk
0:01:41.7]} 11... Nxd4 {[%clk 0:02:42.9]} 12. Bxd4 {[%clk 0:01:43.2]} 12... Nc6
{[%clk 0:02:40.5]} 13. Qe3 {[%clk 0:01:32.1]} 13... Nxd4 {[%clk 0:02:35.4]} 14.
Rxd4 {[%clk 0:01:34]} 14... Qe7 {[%clk 0:02:32.7]} 15. Rd1 {[%clk 0:01:18]}
15... Re8 {[%clk 0:02:30.2]} 16. Bg2 {[%clk 0:01:11]} 16... Bf5 {[%clk
0:02:28.3]} 17. Nc5 {[%clk 0:00:50.4]} 17... Qxe3+ {[%clk 0:01:34.2]} 18. fxe3
{[%clk 0:00:52.3]} 18... Rxe3 {[%clk 0:01:36.1]} 19. Rhf1 {[%clk 0:00:41.6]}
19... Bg6 {[%clk 0:01:31.6]} 20. Bxb7 {[%clk 0:00:41.5]} 20... Rb8 {[%clk
0:01:25.7]} 21. b4 {[%clk 0:00:42.3]} 21... Bb6 {[%clk 0:01:25.5]} 22. Na6
{[%clk 0:00:43]} 22... Rf8 {[%clk 0:01:21.9]} 23. Kb2 {[%clk 0:00:41.2]} 23...
Re2 {[%clk 0:01:19.9]} 24. Rc1 {[%clk 0:00:36.9]} 24... Be3 {[%clk 0:01:20.7]}
25. Rce1 {[%clk 0:00:38.1]} 25... Rxc2+ {[%clk 0:01:21.2]} 26. Kb3 {[%clk
0:00:39.4]} 26... Bd4 {[%clk 0:01:15.7]} 27. Be4 {[%clk 0:00:34.8]} 27... Rc3+
{[%clk 0:01:14.3]} 28. Ka4 {[%clk 0:00:34]} 28... Bxe4 {[%clk 0:01:09.3]} 29.
Rxe4 {[%clk 0:00:35.9]} 29... Bb6 {[%clk 0:01:11.2]} 30. Rfe1 {[%clk 0:00:33.3]}
30... g6 {[%clk 0:01:12]} 31. Re7 {[%clk 0:00:29.9]} 31... Kg7 {[%clk
0:01:11.1]} 32. R7e4 {[%clk 0:00:30.4]} 32... h5 {[%clk 0:01:11.9]} 33. Rf4
{[%clk 0:00:27.5]} 33... Rc2 {[%clk 0:01:03.3]} 34. h4 {[%clk 0:00:27.6]} 34...
Rc3 {[%clk 0:01:04.1]} 35. Re7 {[%clk 0:00:28.7]} 35... Rxg3 {[%clk 0:01:04.5]}
36. Nxc7 {[%clk 0:00:29.9]} 36... Kg8 {[%clk 0:00:59.8]} 37. Nd5 {[%clk
0:00:30]} 37... Kg7 {[%clk 0:00:56.2]} 38. Rf1 {[%clk 0:00:25.7]} 38... Bd4
{[%clk 0:00:50.8]} 39. Nf4 {[%clk 0:00:26.4]} 39... Kg8 {[%clk 0:00:50]} 40. Rd7
{[%clk 0:00:26.1]} 40... Bb2 {[%clk 0:00:50.6]} 41. Nd5 {[%clk 0:00:27.4]} 41...
Rxa3+ {[%clk 0:00:49.8]} 42. Kb5 {[%clk 0:00:28.9]} 42... Bg7 {[%clk 0:00:49.2]}
43. Ne7+ {[%clk 0:00:29.2]} 43... Kh7 {[%clk 0:00:50.2]} 44. Nc6 {[%clk
0:00:30.4]} 44... f5 {[%clk 0:00:43.3]} 45. Rxa7 {[%clk 0:00:28.1]} 45... Rxa7
{[%clk 0:00:42.6]} 46. Nxa7 {[%clk 0:00:30]} 46... f4 {[%clk 0:00:43.5]} 47. Nc6
{[%clk 0:00:30.9]} 47... f3 {[%clk 0:00:44.2]} 48. Kc4 {[%clk 0:00:32.2]} 48...
Rf4+ {[%clk 0:00:40.9]} 49. Kd5 {[%clk 0:00:31.2]} 49... Rf5+ {[%clk 0:00:39.3]}
50. Kc4 {[%clk 0:00:30.6]} 50... Bf8 {[%clk 0:00:37.9]} 51. Nd4 {[%clk
0:00:27.7]} 51... Rf4 {[%clk 0:00:32.6]} 52. Rxf3 {[%clk 0:00:28.8]} 52... Rxf3
{[%clk 0:00:31.6]} 53. Nxf3 {[%clk 0:00:30.7]} 53... Kg7 {[%clk 0:00:32.6]} 54.
Ng5 {[%clk 0:00:31.9]} 54... Be7 {[%clk 0:00:32.4]} 55. Nf3 {[%clk 0:00:32.1]}
55... Kf6 {[%clk 0:00:33.3]} 56. b5 {[%clk 0:00:33.6]} 56... Kf5 {[%clk
0:00:33.4]} 57. Kd5 {[%clk 0:00:33.2]} 57... Kf4 {[%clk 0:00:32.5]} 58. Nd4
{[%clk 0:00:33.4]} 58... Bxh4 {[%clk 0:00:32.7]} 59. b6 {[%clk 0:00:34]} 59...
Bd8 {[%clk 0:00:34.3]} 60. b7 {[%clk 0:00:34.9]} 60... Bc7 {[%clk 0:00:35.8]}
61. Ne6+ {[%clk 0:00:36.3]} 1-0